Cogmind - Beta 14 *** ADVENTURER MODE // 2024.09.17 @ 15:07:15 // Winter2019/RPGLIKE Player: Gallgagger Result: Destroyed 0b10! Performance ------------- Evolutions (9) 4500 Regions Visited (28) 5600 Robots Destroyed (815) 4075 Value Destroyed (46838) 46838 Prototype IDs (54) 1080 Alien Tech Used (1) 200 Bonus (40649) 40649 TOTAL SCORE: 102942 Bonus ------- Triggered High Security 500 High Alert Combat Kills 14622 Follower Combat Kills 1456 Entered Garrisons 800 Entered DSFs 500 Met Imprinter 300 Destroyed Z-Imprinter 1000 Triggered Deep Caves Wall 500 Exposed GOLEM Chamber 500 Acquired ECA 300 Met Warlord at Base 500 MAIN.C Attacked Warlord 500 Warlord Defense Kills 3082 Used Core Reset Matrix 3000 Met Warlord at Research 2000 Invited to Help at Command 2000 Met Sigix 2000 Escaped with Sigix 5000 Win 3000 Friendly Fire -911 Cogmind --------- Core Integrity 827/2200 Matter 300/300 Energy 2265/2350 System Corruption 9% Temperature Cool (0) Movement Walking (87) Location Tau Ceti IV Orbit Parts ------- > --- POWER (3) -------- Assembled Flux Generator Quantum Reactor > --- PROPULSION (4) --- Assembled Alloy Leg Experimental Biometal Leg Experimental Biometal Leg (fused) Experimental Biometal Leg > --- UTILITY (14) ----- Assembled Nanovents Assembled Nanovents Assembled Nanovents Assembled Nanovents Assembled Biocell Array Assembled Biocell Array Assembled Suspension Frame Assembled Metafiber Network Assembled Combat Suite Assembled Alloy Armor Assembled Alloy Armor Assembled Alloy Armor GOLEM Unit > --- WEAPON (3) ------- Assembled Focal Cannon Assembled Focal Cannon Assembled Focal Cannon > --- INVENTORY (5) ---- Light Antimatter Reactor Advanced Phase Shifter Advanced Force Field Sigix Containment Pod Peak State ------------ > --- POWER ------------ Assembled Flux Generator Quantum Reactor > --- PROPULSION ------- Experimental Biometal Leg Experimental Biometal Leg Experimental Biometal Leg Experimental Biometal Leg > --- UTILITY ---------- Assembled Nanovents Assembled Nanovents Assembled Nanovents Assembled Nanovents Assembled Biocell Array Assembled Biocell Array Assembled Suspension Frame Assembled Metafiber Network Assembled Combat Suite Assembled Alloy Armor Assembled Alloy Armor Assembled Alloy Armor GOLEM Unit > --- WEAPON ----------- Assembled Focal Cannon Assembled Focal Cannon Assembled Focal Cannon > --- INVENTORY -------- Light Antimatter Reactor Advanced Phase Shifter Advanced Force Field Sigix Containment Pod [Rating: 220] Favorites ----------- Power Assembled Flux Generator Engine Light Deuterium Engine Power Core Light Nuclear Core Reactor Assembled Flux Generator Propulsion Experimental Biometal Leg Leg Experimental Biometal Leg Flight Unit Flight Unit Utility Assembled Nanovents Device Assembled Nanovents Storage Assembled Biocell Array Processor Core Analyzer Protection Assembled Alloy Armor Weapon Assembled Focal Cannon Energy Gun Medium Laser Energy Cannon Assembled Focal Cannon Ballistic Gun Assault Rifle Ballistic Cannon Antimatter Cannon Launcher Compact Tesla Bomb Launcher Slashing Weapon Makeshift Axe Build | -11 -10 -10 -10 -8 -7 -7 -7 -7 -7 -6 -6 -6 -5 -5 -5 -5 -4 -4 -4 -4 -4 -3 -3 -3 -3 -3 -2 -1 ------- Run | Yrd Mat Min Sub Mat Fac Low Low Zio Dee Pro Fac Gar Fac Upp Upp War Pro Fac Gar Fac DSF Res Gar Res Gar Qua Res Acc Slots Evolved 20 | 3 . . 3 . 4 . . . 2 1 2 . 1 . . . . 1 . . . . 1 . . 1 . 1 Power 2 | 1 . . . . . . . . . . 1 . . . . . . . . . . . . . . . . . Propulsion 3 | 1 . . . . 2 . . . . . . . . . . . . . . . . . . . . . . . Utility 13 | 1 . . 1 . 2 . . . 2 1 1 . 1 . . . . 1 . . . . 1 . . 1 . 1 Weapon 2 | . . . 2 . . . . . . . . . . . . . . . . . . . . . . . . . Parts Attached 93 | 4 6 . 8 11 19 . 1 . 16 2 5 1 . . . 2 . 7 4 . 3 . . . 3 1 . . Power 14 | 2 . . . 1 2 . . . 3 . 1 1 . . . . . 2 2 . . . . . . . . . Engine 5 | 2 . . . 1 1 . . . 1 . . . . . . . . . . . . . . . . . . . Core 2 | . . . . . 1 . . . . . 1 . . . . . . . . . . . . . . . . . Reactor 7 | . . . . . . . . . 2 . . 1 . . . . . 2 2 . . . . . . . . . Propulsion 31 | . 2 . . 2 7 . 1 . . . 4 . . . . 2 . 4 2 . 3 . . . 3 1 . . Treads . | . . . . . . . . . . . . . . . . . . . . . . . . . . . . . Leg 19 | . . . . . . . . . . . 4 . . . . 2 . 4 2 . 3 . . . 3 1 . . Wheel . | . . . . . . . . . . . . . . . . . . . . . . . . . . . . . Hover . | . . . . . . . . . . . . . . . . . . . . . . . . . . . . . Flight 12 | . 2 . . 2 7 . 1 . . . . . . . . . . . . . . . . . . . . . Utility 17 | . 3 . 1 2 3 . . . 7 . . . . . . . . 1 . . . . . . . . . . Device 13 | . 2 . 1 1 2 . . . 6 . . . . . . . . 1 . . . . . . . . . . Storage . | . . . . . . . . . . . . . . . . . . . . . . . . . . . . . Processor 3 | . 1 . . 1 1 . . . . . . . . . . . . . . . . . . . . . . . Hackware . | . . . . . . . . . . . . . . . . . . . . . . . . . . . . . Protection 1 | . . . . . . . . . 1 . . . . . . . . . . . . . . . . . . . Artifact . | . . . . . . . . . . . . . . . . . . . . . . . . . . . . . Weapon 31 | 2 1 . 7 6 7 . . . 6 2 . . . . . . . . . . . . . . . . . . Energy Gun 11 | 1 1 . 4 2 . . . . 3 . . . . . . . . . . . . . . . . . . . Energy Cannon 3 | . . . 2 1 . . . . . . . . . . . . . . . . . . . . . . . . Ballistic Gun 1 | 1 . . . . . . . . . . . . . . . . . . . . . . . . . . . . Ballistic Cannon 1 | . . . . . 1 . . . . . . . . . . . . . . . . . . . . . . . Launcher 5 | . . . . . 1 . . . 2 2 . . . . . . . . . . . . . . . . . . Special Weapon . | . . . . . . . . . . . . . . . . . . . . . . . . . . . . . Impact Weapon . | . . . . . . . . . . . . . . . . . . . . . . . . . . . . . Slashing Weapon 10 | . . . 1 3 5 . . . 1 . . . . . . . . . . . . . . . . . . . Piercing Weapon . | . . . . . . . . . . . . . . . . . . . . . . . . . . . . . Special Melee Weapon . | . . . . . . . . . . . . . . . . . . . . . . . . . . . . . Unidentified Prototypes 24 | . . . . 4 5 . . . 7 2 1 . . . . 1 . 3 . . . . . . . 1 . . Corrupted Parts 1 | . . . . . . . . . . . . . . . . 1 . . . . . . . . . . . . System Corruption 3 | . . . . . . . . . . . . . . . . 3 . . . . . . . . . . . . Parts Lost 9 | . . . . . . . . . . . . 1 1 . . . . 1 . . . . 1 . . 1 . 4 Power . | . . . . . . . . . . . . . . . . . . . . . . . . . . . . . Propulsion . | . . . . . . . . . . . . . . . . . . . . . . . . . . . . . Utility 9 | . . . . . . . . . . . . 1 1 . . . . 1 . . . . 1 . . 1 . 4 Weapon . | . . . . . . . . . . . . . . . . . . . . . . . . . . . . . Highest Loss Streak 3 | . . . . . . . . . . . . 1 1 . . . . 1 . . . . 1 . . 1 . 3 To Critical Strikes . | . . . . . . . . . . . . . . . . . . . . . . . . . . . . . Average Slot Usage (%) 87 | . 91 100 81 77 89 93 93 93 82 75 85 88 89 90 90 90 90 90 90 90 90 90 90 90 90 90 91 90 Engine 4 | . 28 28 20 18 15 13 13 13 2 . . . . . . . . . . . . . . . . . . . Reactor 6 | . . . . . . . . . 5 5 5 6 10 10 10 10 10 9 9 9 9 9 9 9 9 8 8 8 Leg 13 | . . . . . . . . . 7 11 20 21 20 20 20 20 20 19 19 19 19 19 18 18 18 17 17 16 Flight 5 | . 27 28 20 18 16 26 26 26 10 . . . . . . . . . . . . . . . . . . . Device 24 | . 11 14 10 14 19 20 20 20 23 19 23 31 30 30 30 30 30 28 28 28 28 28 30 31 31 29 30 32 Storage 4 | . . . . . . . . . 2 5 5 5 5 5 5 5 5 7 9 9 9 9 9 9 9 8 8 8 Processor 4 | . 9 14 10 9 14 13 13 13 9 5 4 . . . . . . . . . . . . . . . . . Protection 6 | . . . . . . . . . 1 5 5 5 5 10 10 10 10 9 9 9 9 9 9 9 9 13 13 12 Energy Cannon 12 | . . . 7 9 7 6 6 6 11 17 16 15 15 15 15 15 15 14 14 14 14 14 13 13 13 13 13 12 Slashing Weapon 1 | . . . 7 8 7 6 6 6 1 . . . . . . . . . . . . . . . . . . . Peak Build Rating 220 | 3 9 9 28 37 73 73 73 73 120 129 160 162 171 171 171 175 175 191 192 192 192 192 201 201 201 211 211 220 Average Rating 139 | 2 7 9 22 32 51 73 72 73 106 121 136 160 163 171 171 171 175 180 191 192 191 192 200 201 200 210 211 217 On Entrance 130 | . 3 9 9 26 37 73 73 73 73 120 129 160 162 171 171 171 175 175 191 192 192 192 192 201 201 201 211 211 Naked Turns . | . . . . . . . . . . . . . . . . . . . . . . . . . . . . . Heaviest Build 130 | 10 11 11 22 21 31 31 31 31 94 95 111 115 120 120 120 120 120 121 123 123 123 123 124 124 124 129 129 130 Greatest Support 151 | 13 18 18 23 31 43 43 49 43 75 75 130 130 130 130 130 140 140 151 147 147 147 147 147 147 147 147 147 149 Greatest Overweight (x) 1 | . . . . . . . . . 1 1 1 . . . . . . . 1 . . . . . . . . 1 Average Overweight (x) . | . . . . . . . . . . 1 . . . . . . . . . . . . . . . . . . Largest Inventory Capacity 5 | 1 1 1 1 3 4 4 4 4 4 4 4 4 4 5 5 5 5 5 5 5 5 5 5 5 5 5 5 5 Average Capacity 4 | 1 1 1 1 2 3 4 4 4 4 4 4 4 4 4 5 5 5 5 5 5 5 5 5 5 5 5 5 5 Most Carried 5 | . . . 1 3 4 4 4 4 4 3 3 4 4 5 5 5 5 5 5 5 5 5 5 5 5 5 5 5 Average Carried 3 | . . . . 2 3 4 4 4 2 3 3 3 3 4 5 5 5 5 5 5 4 5 5 5 5 4 5 5 Final Capacity 5 | 1 1 1 1 3 4 4 4 4 4 4 4 4 4 5 5 5 5 5 5 5 5 5 5 5 5 5 5 5 Final Carried 5 | . . . 1 3 4 4 4 4 3 3 3 4 4 5 5 5 5 5 5 5 5 5 5 5 5 5 5 5 Class Distribution -------------------- 73% | Hacker-Golem 13% | Hacker-Mutant 10% | Hacker-Sprinter Dominant Class ---------------- Hacker-Mutant | -10/Materials Hacker-Mutant | -10/Mines Hacker-Mutant | -10/Subcaves Hacker-Mutant | -8/Materials Hacker-Sprinter | -7/Factory Hacker-Sprinter | -7/Lower Caves Hacker-Sprinter | -7/Lower Caves Hacker-Sprinter | -7/Zion Hacker-Golem | -7/Deep Caves Hacker-Golem | -6/Proximity Caves Hacker-Golem | -6/Factory Hacker-Golem | -6/Garrison Hacker-Golem | -5/Factory Hacker-Golem | -5/Upper Caves Hacker-Golem | -5/Upper Caves Hacker-Golem | -5/Warlord Hacker-Golem | -4/Proximity Caves Hacker-Golem | -4/Factory Hacker-Golem | -4/Garrison Hacker-Golem | -4/Factory Hacker-Golem | -4/DSF Hacker-Golem | -3/Research Hacker-Golem | -3/Garrison Hacker-Golem | -3/Research Hacker-Golem | -3/Garrison Hacker-Golem | -3/Quarantine Hacker-Golem | -2/Research Hacker-Golem | -1/Access Resources | -11 -10 -10 -10 -8 -7 -7 -7 -7 -7 -6 -6 -6 -5 -5 -5 -5 -4 -4 -4 -4 -4 -3 -3 -3 -3 -3 -2 -1 ----------- Run | Yrd Mat Min Sub Mat Fac Low Low Zio Dee Pro Fac Gar Fac Upp Upp War Pro Fac Gar Fac DSF Res Gar Res Gar Qua Res Acc Matter Collected 1749 | 68 232 17 111 110 204 . 16 6 392 20 40 20 . . . 34 63 93 40 . 35 . . . 91 68 10 79 Remotely . | . . . . . . . . . . . . . . . . . . . . . . . . . . . . . Salvage Created 44417 | . 639 188 663 1547 2008 491 1053 . 3933 1687 3277 1339 1949 622 472 1321 1171 2998 1858 . 403 1065 2048 151 2711 2320 2671 5832 Parts 2237 | . 46 7 41 92 97 30 50 . 97 61 147 65 94 43 23 68 71 164 67 . 39 62 107 17 136 155 145 313 Haulers Intercepted 13 | . 2 . . 3 2 . . . . . 4 . 1 . . . . 1 . . . . . . . . . . Recyclers Shooed 3 | . . . . . . . . . . . 3 . . . . . . . . . . . . . . . . . Parts Field Recycled . | . . . . . . . . . . . . . . . . . . . . . . . . . . . . . Retrieved Matter . | . . . . . . . . . . . . . . . . . . . . . . . . . . . . . Parts Self-Destructed 309 | . . . 9 . . 30 52 . . 81 . . . 44 23 . 70 . . . . . . . . . . . Prevented 2 | . . . . . . . 2 . . . . . . . . . . . . . . . . . . . . . Kills | -11 -10 -10 -10 -8 -7 -7 -7 -7 -7 -6 -6 -6 -5 -5 -5 -5 -4 -4 -4 -4 -4 -3 -3 -3 -3 -3 -2 -1 ------- Run | Yrd Mat Min Sub Mat Fac Low Low Zio Dee Pro Fac Gar Fac Upp Upp War Pro Fac Gar Fac DSF Res Gar Res Gar Qua Res Acc Combat Hostiles Destroyed 755 | . 15 5 20 31 30 16 19 . 67 21 38 29 33 13 15 26 25 48 30 . 10 18 38 2 39 40 46 81 Melee 12 | . . . 1 9 2 . . . . . . . . . . . . . . . . . . . . . . . Guns 27 | . 14 4 8 . . . . . 1 . . . . . . . . . . . . . . . . . . . Cannons 641 | . . . 7 20 24 13 13 . 23 21 36 29 27 13 15 26 24 48 30 . 10 18 38 2 39 40 44 81 AOE 32 | . . . . . . . . . 25 . 1 . 6 . . . . . . . . . . . . . . . Classes Destroyed 31 | . 5 . 3 3 4 2 1 . 4 1 2 . 2 . . 1 . . . . . . 1 . . 1 1 . Worker 10 | . . . . . . . . . . . 1 . 2 . . . . 1 . . . 2 . . . 2 . 2 Builder 17 | . . . . . . . . . . . 6 . 1 . . . . 2 . . . 1 . 1 . 4 . 2 Tunneler 2 | . 1 . . . . . . . . . . . . . . . . . . . . . . . . . . 1 Hauler 13 | . 2 . . 3 2 . . . . . 4 . 1 . . . . 1 . . . . . . . . . . Recycler 9 | . . . . . 2 . . . . . 5 . 1 . . . . 1 . . . . . . . . . . Minesweeper 6 | . . . . . . 2 2 . . . . . . 1 . . 1 . . . . . . . . . . . Operator 13 | . . . . 1 5 . . . . . 2 . 1 . . . . . . . . . . 1 . 2 . 1 Turret 2 | . . . 2 . . . . . . . . . . . . . . . . . . . . . . . . . Watcher 46 | . 3 . . 5 5 . . . . . 6 . 3 . . . . 5 . . . 3 . 1 . 3 3 9 Swarmer 140 | . 5 3 3 3 9 7 4 . . 5 7 6 8 5 8 4 8 6 14 . . 4 15 . 2 2 7 5 Cutter 6 | . . . . . . . . . . . . . . . . . . . . . . . 3 . 3 . . . Saboteur 5 | . . . . . . . . . . . . . 1 . . 1 1 . . . . . . . . . . 2 Grunt 243 | . 10 2 . 17 6 5 10 . . 2 19 17 6 2 6 6 7 23 6 . 3 10 4 . 15 21 14 32 Brawler 21 | . . . . 1 . 1 3 . . . 1 . . 1 . 2 1 2 1 . . 1 . . . 2 . 5 Duelist 14 | . . . . . . 2 . . . . . 1 1 . . 2 1 . 1 . . . 2 . 1 . . 3 Protector 14 | . . . . . 1 . . . . 3 1 . 2 . . 2 . 1 . . . . . . . 3 . 1 Researcher 2 | . . . . . . . . . . . . . . . . . . . . . . . . . . 2 . . Sentry 62 | . . . 1 9 4 1 1 . . 2 4 4 2 1 1 . 2 6 6 . . 2 7 . 2 3 2 2 Demolisher 8 | . . . . . . . . . . 4 . . . . . 2 . . . . . . . . . . 2 . Specialist 15 | . . . . . 2 . . . . . . 1 5 . . 2 . . 1 . 4 . . . . . . . Hunter 43 | . . . . 1 4 . . . . 3 4 . 3 1 . . . . . . 2 . 2 . 5 2 5 11 Programmer 72 | . . . . . 5 . . . . 2 2 . 4 2 . 3 4 8 1 . . 1 2 2 7 4 5 20 Heavy 3 | . . . . . . . . . . . . . 1 . . . . 1 . . 1 . . . . . . . Behemoth 11 | . . . . . . . 1 . . . 1 . . 1 . . 1 2 . . . . 3 . 2 . . . Lightning 3 | . . . . . . . . . . . . . . . . . . . . . . . . . . 3 . . Striker 5 | . . . . . . . . . . . . . . . . . . . . . . . . . . . 5 . Executioner 9 | . . . . . . . . . . . . . . . . 2 . . . . . . . . 2 . 5 . Subdweller 16 | . . . 16 . . . . . . . . . . . . . . . . . . . . . . . . . Z-Technician 3 | . . . . . . . . . 3 . . . . . . . . . . . . . . . . . . . Z-Light 11 | . . . . . . . . . 11 . . . . . . . . . . . . . . . . . . . Assembler 2 | . . . . . . . . . 2 . . . . . . . . . . . . . . . . . . . Assembled 33 | . . . . . . . . . 33 . . . . . . . . . . . . . . . . . . . Golem 22 | . . . . . . . . . 22 . . . . . . . . . . . . . . . . . . . Thug 1 | . . . . . . . . . . . . . . . . . . . . . . . . . . . 1 . Best Kill Streak 33 | . 5 3 3 11 6 7 10 . 33 4 10 10 11 7 4 7 8 15 5 . 5 6 9 4 9 7 14 8 Combat Bots Only 31 | . 4 3 3 7 5 7 10 . 31 4 4 10 9 7 4 7 8 7 5 . 5 5 9 2 9 6 14 7 Max Kills in Single Turn 9 | . 1 1 1 1 1 1 1 . 6 1 4 1 9 2 1 1 2 2 2 . 1 3 3 2 1 2 1 2 Gunslinging . | . . . . . . . . . . . . . . . . . . . . . . . . . . . . . Exploded 6 | . . . . . . . . . 6 . 1 . 6 . . . . . . . . . . . . . . . Melee 1 | . . . 1 1 1 . . . . . . . . . . . . . . . . . . . . . . . Uniques/NPCs Destroyed 1 | . . . . . . . . . 1 . . . . . . . . . . . . . . . . . . . Z-Imprinter (-7/Deep Caves) Combat | -11 -10 -10 -10 -8 -7 -7 -7 -7 -7 -6 -6 -6 -5 -5 -5 -5 -4 -4 -4 -4 -4 -3 -3 -3 -3 -3 -2 -1 -------- Run | Yrd Mat Min Sub Mat Fac Low Low Zio Dee Pro Fac Gar Fac Upp Upp War Pro Fac Gar Fac DSF Res Gar Res Gar Qua Res Acc Hostile Shots Fired 3449 | . 58 20 75 94 212 48 43 . 138 93 178 59 158 46 21 276 105 207 87 . 30 60 158 6 213 239 224 601 Missed 1526 | . 18 9 34 37 127 16 22 . 98 41 80 28 75 16 10 127 37 93 33 . 17 25 73 1 85 98 76 250 Damage Taken 27152 | . 330 121 567 584 985 410 292 . 860 529 985 351 1513 354 119 2355 859 1800 725 . 166 519 1315 73 1912 2026 2695 4707 Core 20081 | . 276 103 466 466 782 333 230 . 714 408 739 272 1159 253 88 1720 640 1310 517 . 124 382 942 49 1459 1424 1942 3283 Absorbed by Shields . | . . . . . . . . . . . . . . . . . . . . . . . . . . . . . Redirected to Core 17449 | . 172 64 335 362 684 258 217 . 508 290 639 218 1007 253 77 1554 570 1254 472 . 105 293 884 33 1213 1299 1661 3027 Ignored by Resistances 14839 | . 104 35 161 206 375 151 105 . 299 326 601 208 873 209 73 1330 511 1050 432 . 97 305 770 44 1131 1189 1475 2779 Core Remaining (%) 86 | 100 . . 100 73 . . . . . 100 . 97 . . . . 70 . . . 100 . . . . 100 89 37 Volleys Fired 1532 | . 99 16 65 73 91 38 41 4 109 68 69 41 46 19 16 44 40 90 50 . 17 37 64 5 89 83 77 141 Largest 3 | . 1 1 2 1 1 1 1 1 3 3 3 3 3 3 3 3 3 3 3 . 3 3 3 3 3 3 3 3 Hottest 120 | . 50 50 120 40 40 40 40 40 120 75 75 75 75 75 75 75 75 75 75 . 75 75 75 75 75 75 75 75 Shots Fired 3540 | . 99 17 79 73 92 38 41 4 133 192 207 123 136 57 48 132 122 270 146 . 51 111 192 15 267 246 230 419 Gun 172 | . 99 17 36 . . . . . 20 . . . . . . . . . . . . . . . . . . . Cannon 3339 | . . . 43 73 92 38 41 4 84 192 207 123 136 57 48 132 122 270 146 . 51 111 192 15 267 246 230 419 Launcher 29 | . . . . . . . . . 29 . . . . . . . . . . . . . . . . . . . Special . | . . . . . . . . . . . . . . . . . . . . . . . . . . . . . Kinetic . | . . . . . . . . . . . . . . . . . . . . . . . . . . . . . Thermal 3511 | . 99 17 79 73 92 38 41 4 104 192 207 123 136 57 48 132 122 270 146 . 51 111 192 15 267 246 230 419 Explosive . | . . . . . . . . . . . . . . . . . . . . . . . . . . . . . Electromagnetic 29 | . . . . . . . . . 29 . . . . . . . . . . . . . . . . . . . Robot Hit Streak 102 | . 22 37 17 29 30 17 33 . 32 31 30 38 19 37 40 27 45 30 30 . 42 33 65 73 50 102 38 70 Robot Miss Streak 4 | . 4 . 2 3 1 1 1 . 2 1 1 1 1 2 1 1 1 2 1 . 1 1 1 . 1 1 1 2 Penetration Max . | . . . . . . . . . . . . . . . . . . . . . . . . . . . . . Secondary Targets 1 | . . . 1 . . . . . . . . . . . . . . . . . . . . . . . . . Max Gunslinging Chain 1 | . . . 1 . . . . . . . . . . . . . . . . . . . . . . . . . Shots Hit Robots 2472 | . 79 15 57 99 85 34 43 . 112 103 130 56 88 40 29 101 79 190 79 . 36 83 111 8 144 190 171 310 Core Hits 1288 | . 32 5 22 36 41 15 15 . 166 43 76 34 50 17 12 43 37 91 41 . 16 36 58 4 66 96 71 165 Critical Kills 27 | . . . 6 2 5 4 6 . 4 . . . . . . . . . . . . . . . . . . . Critical Parts Destroyed . | . . . . . . . . . . . . . . . . . . . . . . . . . . . . . Critical Strikes 35 | . 1 3 7 5 5 4 6 . 4 . . . . . . . . . . . . . . . . . . . Burn 5 | . 1 3 1 . . . . . . . . . . . . . . . . . . . . . . . . . Meltdown 26 | . . . 5 2 5 4 6 . 4 . . . . . . . . . . . . . . . . . . . Destroy 1 | . . . 1 . . . . . . . . . . . . . . . . . . . . . . . . . Sever 3 | . . . . 3 . . . . . . . . . . . . . . . . . . . . . . . . Melee Attacks 54 | . . . 5 41 4 . 4 . . . . . . . . . . . . . . . . . . . . . Impact . | . . . . . . . . . . . . . . . . . . . . . . . . . . . . . Slashing 54 | . . . 5 41 4 . 4 . . . . . . . . . . . . . . . . . . . . . Piercing . | . . . . . . . . . . . . . . . . . . . . . . . . . . . . . Sneak Attacks 4 | . . . . 2 . . 2 . . . . . . . . . . . . . . . . . . . . . Combat Hostiles . | . . . . . . . . . . . . . . . . . . . . . . . . . . . . . Follow-up Attacks . | . . . . . . . . . . . . . . . . . . . . . . . . . . . . . Damage Inflicted 131445 | . 1001 196 1776 5054 4546 1909 2456 . 8700 5234 8148 2977 6394 2136 1428 5023 4312 10109 4500 . 1835 4250 5862 570 7284 10132 8721 16892 Guns 2259 | . 1001 196 507 . . . . . 555 . . . . . . . . . . . . . . . . . . . Cannons 119684 | . . . 1136 3630 4387 1909 2191 . 4067 5234 6921 2977 4568 2136 1428 5023 4312 9942 4500 . 1835 4250 5862 570 7284 9979 8721 16822 Explosions 7195 | . . . . . . . . . 4078 . 1194 . 1756 . . . . 167 . . . . . . . . . . Melee 1981 | . . . 133 1424 159 . 265 . . . . . . . . . . . . . . . . . . . . . Ramming 326 | . . . . . . . . . . . 33 . 70 . . . . . . . . . . . . 153 . 70 Kinetic . | . . . . . . . . . . . . . . . . . . . . . . . . . . . . . Thermal 124200 | . 1001 196 1643 3630 4387 1909 2191 . 4622 5234 7422 2977 6324 2136 1428 5023 4312 9942 4500 . 1835 4250 5862 570 7284 9979 8721 16822 Explosive 860 | . . . . . . . . . . . 693 . . . . . . 167 . . . . . . . . . . Electromagnetic 4078 | . . . . . . . . . 4078 . . . . . . . . . . . . . . . . . . . Impact . | . . . . . . . . . . . . . . . . . . . . . . . . . . . . . Slashing 1981 | . . . 133 1424 159 . 265 . . . . . . . . . . . . . . . . . . . . . Piercing . | . . . . . . . . . . . . . . . . . . . . . . . . . . . . . Highest Corruption 9 | . 1 1 1 . 2 2 2 2 . . . . . . . 7 7 1 3 3 4 . . 3 4 7 6 9 Average Corruption 3 | . 1 1 1 . 1 2 2 2 . . . . . . . 1 7 1 2 3 3 . . 2 3 5 5 6 Corruption Purged . | . . . . . . . . . . . . . . . . . . . . . . . . . . . . . Corruption Blocked . | . . . . . . . . . . . . . . . . . . . . . . . . . . . . . Effects 233 | . 1 8 13 . 14 7 7 . . . . . . . . 8 38 6 6 . 3 . . 4 30 20 16 52 Message Errors 64 | . . 1 2 . 2 3 1 . . . . . . . . 1 7 2 2 . 1 . . 1 6 12 7 16 Matter Fused 52 | . . 4 3 . 2 . 2 . . . . . . . . 2 11 1 . . 1 . . 1 9 4 1 11 Heat Flow Errors 27 | . . 2 2 . 2 1 1 . . . . . . . . . 5 1 . . 1 . . 1 2 1 2 6 Energy Discharges 23 | . 1 . 3 . 2 1 . . . . . . . . . 2 4 1 2 . . . . . 3 1 1 2 Parts Rejected 3 | . . . . . . . 1 . . . . . . . . . . . 1 . . . . . 1 . . . Parts Fused 2 | . . . . . . . . . . . . . . . . . . . . . . . . . . . 1 1 Data Loss (minor) 24 | . . . 1 . 3 1 . . . . . . . . . 2 5 1 1 . . . . 1 4 1 . 4 Data Loss (major) 14 | . . . 1 . 2 1 . . . . . . . . . 1 2 . . . . . . . 1 1 2 3 Misfires 11 | . . 1 . . 1 . 1 . . . . . . . . . 3 . . . . . . . 2 . . 3 Alerts 3 | . . . 1 . . . . . . . . . . . . . . . . . . . . . . . 1 1 Weapon Failures 10 | . . . . . . . 1 . . . . . . . . . 1 . . . . . . . 2 . 1 5 Overload Shots 1 | . . . . . . . . . 1 . . . . . . . . . . . . . . . . . . . Overflow Damage 5969 | . . . 114 472 184 98 270 . 335 224 560 92 467 151 213 43 314 300 344 . 10 138 79 66 84 311 473 627 Projectiles 5072 | . . . 112 328 184 98 106 . 204 224 351 92 284 151 213 43 314 300 344 . 10 138 79 66 84 276 473 598 Explosions 503 | . . . . . . . . . 131 . 207 . 165 . . . . . . . . . . . . . . . Melee 394 | . . . 2 144 . . 164 . . . 2 . 18 . . . . . . . . . . . . 35 . 29 Knockbacks 4 | . . . . . . . . . . . 1 . . . . . . . . . . . . . . 3 . . Impact 3 | . . . . . . . . . . . 1 . . . . . . . . . . . . . . 2 . . Kinetic . | . . . . . . . . . . . . . . . . . . . . . . . . . . . . . Secondary 1 | . . . . . . . . . . . . . . . . . . . . . . . . . . 1 . . Self-Inflicted Damage 347 | . . . . . . . . . 14 . 74 . 217 . . . . 42 . . . . . . . . . . Shots 8 | . . . . . . . . . 1 . 2 . 4 . . . . 1 . . . . . . . . . . Rammed . | . . . . . . . . . . . . . . . . . . . . . . . . . . . . . Targets Rammed 17 | . . . . . . . . . . . 4 . 3 . . . . . . . . . . . . 7 . 3 Kicked 17 | . . . . . . . . . . . 4 . 3 . . . . . . . . . . . . 7 . 3 Crushed . | . . . . . . . . . . . . . . . . . . . . . . . . . . . . . Highest Temperature 304 | . 235 188 76 25 265 151 163 . 304 . . . . . . 126 155 13 . . 115 . . 43 165 . 163 153 Average Temperature 83 | . 84 85 40 7 51 81 84 . 148 . . . . . . 71 93 13 . . 115 . . 43 86 . 80 58 Received Heat Transfer 5635 | . 198 60 186 396 87 63 93 . 156 30 255 229 270 84 54 394 204 316 169 . 12 84 144 . 629 526 351 645 Siege Activations . | . . . . . . . . . . . . . . . . . . . . . . . . . . . . . Robots Corrupted 17 | . . . . . . . . . 14 . 1 . . . . . . . . . . . . . . 1 . 1 Combat Hostiles 15 | . . . . . . . . . 14 . 1 . . . . . . . . . . . . . . . . . Parts Fried 16 | . . . . . . . . . . . 1 . 3 . . 1 . . . . . . . . 1 6 1 3 Impact Corruptions 5 | . . . . . . . . . . . 1 . 1 . . . . . . . . . . . . 2 . 1 Robots Melted 32 | . 2 1 5 2 5 4 6 . 4 . . . . . . . 1 . . . . . . . . . 2 . Combat Hostiles 28 | . 1 1 4 2 4 3 6 . 4 . . . . . . . 1 . . . . . . . . . 2 . Parts Melted 126 | . 15 3 10 2 10 7 10 . 7 . 9 2 4 . . 4 2 8 3 . 1 4 1 . 4 2 9 9 Heat Transferred 54824 | . 2794 777 870 . . . . . 580 2400 3909 1475 2970 975 700 2041 2125 4831 2045 . 925 2150 2909 250 3470 4785 4234 7609 Parts Sabotaged . | . . . . . . . . . . . . . . . . . . . . . . . . . . . . . Parts Stolen . | . . . . . . . . . . . . . . . . . . . . . . . . . . . . . Parts Stripped . | . . . . . . . . . . . . . . . . . . . . . . . . . . . . . Power Chain Reactions . | . . . . . . . . . . . . . . . . . . . . . . . . . . . . . Alert | -11 -10 -10 -10 -8 -7 -7 -7 -7 -7 -6 -6 -6 -5 -5 -5 -5 -4 -4 -4 -4 -4 -3 -3 -3 -3 -3 -2 -1 ------- Run | Yrd Mat Min Sub Mat Fac Low Low Zio Dee Pro Fac Gar Fac Upp Upp War Pro Fac Gar Fac DSF Res Gar Res Gar Qua Res Acc Peak Influence 2366 | . 530 298 . 426 409 . . . . . 646 1257 839 . . . . 745 1479 672 686 816 1849 1002 2366 1592 1560 2105 Initial 1159 | . . 174 . . 33 . . . . . . 306 571 . . . . 55 459 672 414 336 542 905 665 1159 643 626 Average 738 | . 334 188 . 163 191 . . . . . 263 904 507 . . . . 230 995 672 592 560 1336 977 1512 1289 1209 1189 Maximum Alert Level 5 | . 2 1 . 2 2 . . . . . 2 4 3 . . . . 3 4 2 2 3 5 3 5 4 4 5 Low Security (%) 20 | 100 16 40 . 60 58 . . . . . 41 . 9 . . . . 55 . . . . . . . . . . Level 1 16 | . 41 59 . 39 39 . . . . . 29 4 10 . . . . 28 . . . 25 . . . . . . Level 2 17 | . 42 . . . 2 . . . . . 28 21 69 . . . . 13 19 100 100 58 5 . 2 . 5 20 Level 3 14 | . . . . . . . . . . . . 45 10 . . . . 2 41 . . 15 24 100 25 9 24 26 Level 4 23 | . . . . . . . . . . . . 28 . . . . . . 39 . . . 34 . 30 90 69 32 Level 5 5 | . . . . . . . . . . . . . . . . . . . . . . . 35 . 41 . . 9 High Security 1 | . . . . . . . . . . . . . . . . . . . . . . . . . . . . 10 Max Security . | . . . . . . . . . . . . . . . . . . . . . . . . . . . . . Sterilizations 1 | . . . . . . . . . . . . . . . . . . . . . 1 . . . . . . . Squads Dispatched 78 | . 3 . . 4 6 . 1 . . 1 8 . 8 . . . 1 9 . . 2 1 . . . 11 . 23 Investigation 14 | . 3 . . 2 1 . . . . . 2 . . . . . . 1 . . . 1 . . . 2 . 2 Extermination 19 | . . . . . 4 . . . . . 2 . 1 . . . . 3 . . . . . . . 3 . 6 Reinforcement 16 | . . . . . 1 . . . . . 3 . 5 . . . . 3 . . 2 . . . . 1 . 1 Assault 26 | . . . . . . . 1 . . 1 1 . 2 . . . 1 2 . . . . . . . 5 . 13 Garrison 3 | . . . . 2 . . . . . . . . . . . . . . . . . . . . . . . 1 Intercept . | . . . . . . . . . . . . . . . . . . . . . . . . . . . . . Searches Triggered . | . . . . . . . . . . . . . . . . . . . . . . . . . . . . . Construction Impeded 4 | . . . . . . . . . . . 2 . 1 . . . . 1 . . . . . . . . . . Haulers Reinforced 1 | . . . . . . . . . . . . . . . . . . . . . . . . . . . . 1 Active Scanning Responses . | . . . . . . . . . . . . . . . . . . . . . . . . . . . . . Cargo Convoy Interrupts 4 | . . . . . 1 . . . . . 1 . 1 . . . . 1 . . . . . . . . . . Stealth | -11 -10 -10 -10 -8 -7 -7 -7 -7 -7 -6 -6 -6 -5 -5 -5 -5 -4 -4 -4 -4 -4 -3 -3 -3 -3 -3 -2 -1 --------- Run | Yrd Mat Min Sub Mat Fac Low Low Zio Dee Pro Fac Gar Fac Upp Upp War Pro Fac Gar Fac DSF Res Gar Res Gar Qua Res Acc Distress Signals 37 | . 2 . . 1 . . . . . 17 2 . . . . 1 . 1 . . . . . . . 1 6 6 Communications Jammed . | . . . . . . . . . . . . . . . . . . . . . . . . . . . . . Distress Signals . | . . . . . . . . . . . . . . . . . . . . . . . . . . . . . Times Spotted 1006 | . 26 15 23 39 47 16 21 . 88 21 48 27 49 11 14 58 28 57 30 . 11 27 41 4 42 72 63 128 Peak Tracking Total 37 | . 6 20 3 7 7 6 11 . 37 4 6 5 10 3 4 12 8 6 7 . 4 5 8 2 6 8 9 20 Tactical Retreats 39 | . 2 1 2 2 3 . 1 . 3 . 1 . 2 . . 2 . 1 1 . . 4 2 . 1 4 3 4 Traps | -11 -10 -10 -10 -8 -7 -7 -7 -7 -7 -6 -6 -6 -5 -5 -5 -5 -4 -4 -4 -4 -4 -3 -3 -3 -3 -3 -2 -1 ------- Run | Yrd Mat Min Sub Mat Fac Low Low Zio Dee Pro Fac Gar Fac Upp Upp War Pro Fac Gar Fac DSF Res Gar Res Gar Qua Res Acc Traps Triggered 32 | . 3 . . . 2 . . . . 4 1 1 . . . 1 . 1 2 . 1 . 3 . 2 4 . 7 Indirectly . | . . . . . . . . . . . . . . . . . . . . . . . . . . . . . Trap Hack Attempts . | . . . . . . . . . . . . . . . . . . . . . . . . . . . . . Triggered . | . . . . . . . . . . . . . . . . . . . . . . . . . . . . . Disarmed . | . . . . . . . . . . . . . . . . . . . . . . . . . . . . . Reprogrammed 1 | . . . . 1 . . . . . . . . . . . . . . . . . . . . . . . . Reused . | . . . . . . . . . . . . . . . . . . . . . . . . . . . . . Traps Extracted . | . . . . . . . . . . . . . . . . . . . . . . . . . . . . . Installed 24 | . . . . 1 . 23 . . . . . . . . . . . . . . . . . . . . . . Triggered 7 | . . . . . . . . . . . . . . . . 7 . . . . . . . . . . . . Most Traps Carried 1 | . . . 1 1 . . . . . . . . . . . . . . . . . . . . . . . . Machines | -11 -10 -10 -10 -8 -7 -7 -7 -7 -7 -6 -6 -6 -5 -5 -5 -5 -4 -4 -4 -4 -4 -3 -3 -3 -3 -3 -2 -1 ---------- Run | Yrd Mat Min Sub Mat Fac Low Low Zio Dee Pro Fac Gar Fac Upp Upp War Pro Fac Gar Fac DSF Res Gar Res Gar Qua Res Acc Machines Disabled 112 | . . . 1 1 1 . . 4 3 5 24 11 7 . . . 1 11 7 . 1 . 11 1 13 4 3 3 Max in Single Turn 6 | . . . 1 1 1 . . 1 1 1 6 2 5 . . . 1 2 2 . 1 . 1 1 1 1 1 1 Garrison Access 4 | . . . . . . . . . . . 1 . . . . . . . . . . . . . . . 3 . Garrison Relay 18 | . . . . . . . . . . . . 3 . . . . . . 2 . . . 5 . 8 . . . Phase Generator 1 | . . . . . . . . . . . . 1 . . . . . . . . . . . . . . . . Machines Repaired . | . . . . . . . . . . . . . . . . . . . . . . . . . . . . . Machines Dismantled . | . . . . . . . . . . . . . . . . . . . . . . . . . . . . . Machines Sabotaged . | . . . . . . . . . . . . . . . . . . . . . . . . . . . . . Overloaded Fab Kills . | . . . . . . . . . . . . . . . . . . . . . . . . . . . . . Hacking | -11 -10 -10 -10 -8 -7 -7 -7 -7 -7 -6 -6 -6 -5 -5 -5 -5 -4 -4 -4 -4 -4 -3 -3 -3 -3 -3 -2 -1 --------- Run | Yrd Mat Min Sub Mat Fac Low Low Zio Dee Pro Fac Gar Fac Upp Upp War Pro Fac Gar Fac DSF Res Gar Res Gar Qua Res Acc Machines Accessed 107 | . 10 . 2 11 20 1 1 1 . . 12 . 3 . 1 1 . 9 3 1 . 7 3 2 2 14 . 3 Terminals 78 | . 8 . . 10 13 . . . . . 6 . 3 . . . . 6 3 1 . 6 3 1 2 13 . 3 Fabricators 10 | . . . . . 6 . . . . . 3 . . . . . . 1 . . . . . . . . . . Repair Stations . | . . . . . . . . . . . . . . . . . . . . . . . . . . . . . Recycling Units 5 | . 2 . . 1 1 . . . . . 1 . . . . . . . . . . . . . . . . . Scanalyzers . | . . . . . . . . . . . . . . . . . . . . . . . . . . . . . Garrison Access 7 | . . . . . . . . . . . 2 . . . . . . 2 . . . 1 . 1 . 1 . . Total Hacks 346 | . 34 . 13 44 69 1 1 7 . . 35 . 21 . 1 1 . 42 6 1 . 13 6 8 3 34 . 6 Successful 224 | . 20 . 13 30 43 1 1 7 . . 21 . 12 . 1 1 . 30 2 1 . 6 3 4 2 24 . 2 Failed 120 | . 14 . . 13 25 . . . . . 14 . 9 . . . . 12 4 . . 7 3 4 1 10 . 4 Catastrophic 13 | . . . . 3 . . . . . . 2 . . . . . . 1 . . . 4 . . . 1 . 2 Database Lockouts 2 | . . . . 1 1 . . . . . . . . . . . . . . . . . . . . . . . Manual 222 | . 24 . . 28 56 . . 1 . . 31 . 7 . . . . 26 . . . 12 . 3 . 28 . 6 Terminals 279 | . 31 . . 43 51 . . . . . 25 . 21 . . . . 36 6 1 . 12 6 5 3 33 . 6 Fabricators 25 | . . . . . 15 . . . . . 7 . . . . . . 3 . . . . . . . . . . Repair Stations . | . . . . . . . . . . . . . . . . . . . . . . . . . . . . . Recycling Units 8 | . 3 . . 1 3 . . . . . 1 . . . . . . . . . . . . . . . . . Scanalyzers . | . . . . . . . . . . . . . . . . . . . . . . . . . . . . . Garrison Access 10 | . . . . . . . . . . . 2 . . . . . . 3 . . . 1 . 3 . 1 . . Terminal Hacks 127 | . 10 . 13 19 18 1 1 7 . . 8 . 10 . 1 1 . 11 2 1 . 1 3 2 2 16 . . Record 21 | . . . 12 1 1 . . . . . . . 1 . . . . 1 . . . . . . . 5 . . Part Schematic 7 | . . . . . . . . 7 . . . . . . . . . . . . . . . . . . . . Robot Analysis 20 | . 5 . . 5 5 . . . . . . . 2 . . . . 1 . . . . . 2 . . . . Prototype ID Bank 2 | . 1 . . . . . . . . . . . . . . . . 1 . . . . . . . . . . Open Door 6 | . . . . . . 1 1 . . . . . . . 1 1 . . . . . . 1 . . 1 . . Open DSF 1 | . . . . . . . . . . . . . . . . . . . . 1 . . . . . . . . Level Access Points 2 | . . . . . . . . . . . 1 . . . . . . . . . . . . . . 1 . . Branch Access Points 7 | . 1 . . 1 1 . . . . . 1 . 1 . . . . 1 . . . . . . . 1 . . Emergency Access Points 6 | . . . . 1 1 . . . . . . . . . . . . 1 1 . . . 1 . 1 . . . Terminal Index 7 | . 1 . . 1 1 . . . . . . . . . . . . 1 . . . 1 . . . 2 . . Garrison Index 1 | . . . . . . . . . . . . . . . . . . . . . . . . . . 1 . . Alert Level 16 | . 1 . . 4 3 . . . . . 3 . 2 . . . . 2 . . . . . . . 1 . . Unreport Threat 21 | . 1 . . 5 2 . . . . . 3 . 4 . . . . 3 . . . . . . . 3 . . Reprogram Traps 1 | . . . . 1 . . . . . . . . . . . . . . . . . . . . . . . . Dispatch Records 2 | . . . . . 2 . . . . . . . . . . . . . . . . . . . . . . . Recall Reinforcements 1 | . . . . . . . . . . . . . . . . . . . . . . . . . . 1 . . Hauler Manifests 1 | . . . . . 1 . . . . . . . . . . . . . . . . . . . . . . . Zone Layout 1 | . . . . . 1 . . . . . . . . . . . . . . . . . . . . . . . Garrison Registry 1 | . . . . . . . . . . . . . . . . . . . 1 . . . . . . . . . Patrol Navigation 2 | . . . . . . . . . . . . . . . . . . . . . . . 1 . 1 . . . Derelict Proto ID Bank 1 | . . . 1 . . . . . . . . . . . . . . . . . . . . . . . . . Fabricator Hacks 2 | . . . . . 2 . . . . . . . . . . . . . . . . . . . . . . . Build 2 | . . . . . 2 . . . . . . . . . . . . . . . . . . . . . . . Repair Station Hacks . | . . . . . . . . . . . . . . . . . . . . . . . . . . . . . Recycling Unit Hacks . | . . . . . . . . . . . . . . . . . . . . . . . . . . . . . Scanalyzer . | . . . . . . . . . . . . . . . . . . . . . . . . . . . . . Garrison Access Hacks 5 | . . . . . . . . . . . 1 . . . . . . 2 . . . 1 . 1 . . . . Unlock Access 5 | . . . . . . . . . . . 1 . . . . . . 2 . . . 1 . 1 . . . . Unauthorized Hacks 90 | . 10 . . 11 23 . . . . . 12 . 2 . . . . 17 . . . 4 . 1 . 8 . 2 Terminals 66 | . 8 . . 10 13 . . . . . 5 . 2 . . . . 15 . . . 4 . . . 7 . 2 Track 2 | . . . . . . . . . . . . . . . . . . 2 . . . . . . . . . . Assimilate 1 | . . . . . 1 . . . . . . . . . . . . . . . . . . . . . . . Botnet 55 | . 8 . . 10 11 . . . . . 5 . 2 . . . . 6 . . . 4 . . . 7 . 2 Disrupt 1 | . . . . . . . . . . . . . . . . . . 1 . . . . . . . . . . Operators 3 | . . . . . 1 . . . . . . . . . . . . 2 . . . . . . . . . . Skim 4 | . . . . . . . . . . . . . . . . . . 4 . . . . . . . . . . Fabricators 15 | . . . . . 9 . . . . . 5 . . . . . . 1 . . . . . . . . . . Liberate 9 | . . . . . 5 . . . . . 3 . . . . . . 1 . . . . . . . . . . Fabnet 6 | . . . . . 4 . . . . . 2 . . . . . . . . . . . . . . . . . Repair Stations . | . . . . . . . . . . . . . . . . . . . . . . . . . . . . . Recycling Units 5 | . 2 . . 1 1 . . . . . 1 . . . . . . . . . . . . . . . . . Mask 1 | . . . . . 1 . . . . . . . . . . . . . . . . . . . . . . . Tunnel 4 | . 2 . . 1 . . . . . . 1 . . . . . . . . . . . . . . . . . Scanalyzers . | . . . . . . . . . . . . . . . . . . . . . . . . . . . . . Garrison Access 4 | . . . . . . . . . . . 1 . . . . . . 1 . . . . . 1 . 1 . . Reprogram 4 | . . . . . . . . . . . 1 . . . . . . 1 . . . . . 1 . 1 . . Data Cores Recovered 11 | . . . . 1 5 . . . . . 1 . . . . . . . . . . . . 1 . 2 . 1 Used 5 | . . . . 1 2 . . . . . . . . . . . . . . . . . . . . 1 . 1 Hacking Detections 79 | . 9 . . 9 17 . . . . . 9 . 3 . . . . 7 1 . . 7 1 2 . 11 . 3 Full Trace Events 3 | . . . . 1 . . . . . . . . . . . . . . 1 . . 1 . . . . . . Feedback Events . | . . . . . . . . . . . . . . . . . . . . . . . . . . . . . Feedback Blocked . | . . . . . . . . . . . . . . . . . . . . . . . . . . . . . Robot Schematics Acquired 1 | . . . . . . . . . . . . . . . . . . . . . . . . . . 1 . . Robots Built 4 | . . . . . 4 . . . . . . . . . . . . . . . . . . . . . . . Authchips . | . . . . . . . . . . . . . . . . . . . . . . . . . . . . . Time 67 | . . . . . 67 . . . . . . . . . . . . . . . . . . . . . . . Total Robot Build Rating 16 | . . . . . 16 . . . . . . . . . . . . . . . . . . . . . . . Part Schematics Acquired 14 | . . . . . . . . 7 . . . . . . . . . . . . . . . . . 7 . . Parts Built 2 | . . . . . 2 . . . . . . . . . . . . . . . . . . . . . . . Authchips . | . . . . . . . . . . . . . . . . . . . . . . . . . . . . . Time 42 | . . . . . 42 . . . . . . . . . . . . . . . . . . . . . . . Total Part Build Rating 8 | . . . . . 8 . . . . . . . . . . . . . . . . . . . . . . . Parts Repaired . | . . . . . . . . . . . . . . . . . . . . . . . . . . . . . Time . | . . . . . . . . . . . . . . . . . . . . . . . . . . . . . Parts Recycled . | . . . . . . . . . . . . . . . . . . . . . . . . . . . . . Recycled Matter . | . . . . . . . . . . . . . . . . . . . . . . . . . . . . . Retrieved Matter . | . . . . . . . . . . . . . . . . . . . . . . . . . . . . . Retrieved Components . | . . . . . . . . . . . . . . . . . . . . . . . . . . . . . Parts Scanalyzed . | . . . . . . . . . . . . . . . . . . . . . . . . . . . . . Part Schematics Acquired . | . . . . . . . . . . . . . . . . . . . . . . . . . . . . . Parts Damaged . | . . . . . . . . . . . . . . . . . . . . . . . . . . . . . Bothacking | -11 -10 -10 -10 -8 -7 -7 -7 -7 -7 -6 -6 -6 -5 -5 -5 -5 -4 -4 -4 -4 -4 -3 -3 -3 -3 -3 -2 -1 ------------ Run | Yrd Mat Min Sub Mat Fac Low Low Zio Dee Pro Fac Gar Fac Upp Upp War Pro Fac Gar Fac DSF Res Gar Res Gar Qua Res Acc Used RIF Installer . | . . . . . . . . . . . . . . . . . . . . . . . . . . . . . Robots Hacked 34 | . . . . . . . . . . 4 6 6 5 1 3 4 1 2 1 . 1 . . . . . . . Non-combat . | . . . . . . . . . . . . . . . . . . . . . . . . . . . . . Combat 34 | . . . . . . . . . . 4 6 6 5 1 3 4 1 2 1 . 1 . . . . . . . Robot Hacks Applied . | . . . . . . . . . . . . . . . . . . . . . . . . . . . . . Relay Couplers Released 36 | . . . . . . . . . . . 1 6 . . . . . . 3 . . . 8 . 14 . 2 2 Machine Destruction 34 | . . . . . . . . . . . 1 6 . . . . . . 3 . . . 8 . 14 . 2 . Programmers 2 | . . . . . . . . . . . . . . . . . . . . . . . . . . . . 2 Fabnet Peak Effective % 9 | . . . . . . . . . . 9 9 9 9 9 9 9 2 2 2 2 2 . . . . . . . Autooverrided 34 | . . . . . . . . . . 4 6 6 5 1 3 4 1 2 1 . 1 . . . . . . . Robots Rewired 17 | . . . . . 1 2 2 . . 4 . . 1 . . . 2 . . . . . 1 . 4 . . . Allies Hacked 3 | . . . . . . . . . . . . . . . . 1 . 1 . . . . . . . 1 . . Hacks Repelled . | . . . . . . . . . . . . . . . . . . . . . . . . . . . . . Allies | -11 -10 -10 -10 -8 -7 -7 -7 -7 -7 -6 -6 -6 -5 -5 -5 -5 -4 -4 -4 -4 -4 -3 -3 -3 -3 -3 -2 -1 -------- Run | Yrd Mat Min Sub Mat Fac Low Low Zio Dee Pro Fac Gar Fac Upp Upp War Pro Fac Gar Fac DSF Res Gar Res Gar Qua Res Acc Total Allies 87 | . . 3 . . 8 2 2 2 . 8 9 8 6 1 3 4 3 6 1 . 1 . 3 . 6 3 . 8 Largest Group 8 | . . 3 3 . 5 2 4 6 6 3 4 3 3 . 2 1 2 4 1 . 1 . 2 . 4 3 . 8 Highest-Rated Group 357 | . . 40 40 . 78 40 100 292 292 130 124 124 141 . 47 81 95 188 12 . 47 . 116 . 357 228 . 117 Highest-Rated Ally 148 | . . 16 16 . 30 20 30 96 96 96 41 47 49 . 47 81 48 48 12 . 47 . 116 . 148 148 . 15 Total Orders 14 | . . 2 . . 3 . . . 4 . . . . . . . . . . . . . . . 3 2 . . STAY 8 | . . 1 . . 2 . . . 4 . . . . . . . . . . . . . . . . 1 . . ROAM 2 | . . . . . . . . . . . . . . . . . . . . . . . . . 2 . . . FOLLOW 4 | . . 1 . . 1 . . . . . . . . . . . . . . . . . . . 1 1 . . Ally Attacks 494 | . . 4 17 . 8 . 10 . 143 23 53 28 33 1 8 11 2 31 5 . 2 . 3 . 52 31 . 29 Total Damage 13675 | . . 47 201 . 109 . 319 . 4744 652 1001 588 695 20 120 516 28 707 63 . 61 . 78 . 1810 1157 . 759 Kills 68 | . . 1 . . 2 . 2 . 21 7 6 4 4 1 . 1 . 4 . . 1 . . . 8 5 . 1 Allies Corrupted 1 | . . . . . . . . . . . 1 . . . . . . . . . . . . . . . . . Allies Melted 3 | . . . . . . . . . . . 1 1 . . . . . . . . . . . . . . 1 . Intel | -11 -10 -10 -10 -8 -7 -7 -7 -7 -7 -6 -6 -6 -5 -5 -5 -5 -4 -4 -4 -4 -4 -3 -3 -3 -3 -3 -2 -1 ------- Run | Yrd Mat Min Sub Mat Fac Low Low Zio Dee Pro Fac Gar Fac Upp Upp War Pro Fac Gar Fac DSF Res Gar Res Gar Qua Res Acc Robot Analysis Total 20 | . 5 . . 5 5 . . . . . . . 2 . . . . 1 . . . . . 2 . . . . Derelict Logs Recovered 14 | . . 1 2 . . 1 2 2 . 1 . . . 2 1 . 2 . . . . . . . . . . . Drone Launches . | . . . . . . . . . . . . . . . . . . . . . . . . . . . . . Drone Recoveries . | . . . . . . . . . . . . . . . . . . . . . . . . . . . . . Exploration | -11 -10 -10 -10 -8 -7 -7 -7 -7 -7 -6 -6 -6 -5 -5 -5 -5 -4 -4 -4 -4 -4 -3 -3 -3 -3 -3 -2 -1 ------------- Run | Yrd Mat Min Sub Mat Fac Low Low Zio Dee Pro Fac Gar Fac Upp Upp War Pro Fac Gar Fac DSF Res Gar Res Gar Qua Res Acc Turns Passed 32487 | 18 724 629 1676 848 1972 543 531 493 2237 2889 2346 978 895 1483 1239 973 1345 1544 548 15 221 552 912 175 1015 1723 1604 2359 Spaces Moved 28175 | 25 899 705 2556 1277 2865 1186 1099 1004 1328 1243 1408 630 536 1098 913 629 933 875 391 17 147 385 689 165 647 1315 1302 1908 Core 47 | 25 22 . . . . . . . . . . . . . . . . . . . . . . . . . . . Treads . | . . . . . . . . . . . . . . . . . . . . . . . . . . . . . Legs 15717 | . . . . . . . . . 486 1243 1408 630 536 1098 913 629 933 875 391 17 147 385 689 165 647 1315 1302 1908 Wheels . | . . . . . . . . . . . . . . . . . . . . . . . . . . . . . Hover . | . . . . . . . . . . . . . . . . . . . . . . . . . . . . . Flight 12411 | . 877 705 2556 1277 2865 1186 1099 1004 842 . . . . . . . . . . . . . . . . . . . Fastest Speed 10 | 50 37 37 37 34 21 21 16 21 10 180 127 127 127 127 127 122 122 90 90 90 90 90 90 90 90 90 90 75 Average Speed 78 | 50 37 37 37 35 31 21 20 21 78 180 141 127 127 127 127 126 122 118 91 90 90 90 90 90 90 90 90 86 Slowest Speed 186 | 50 50 37 37 37 35 21 21 21 180 180 186 127 127 127 127 127 122 122 170 90 90 90 90 90 90 90 90 143 Overloaded Moves 2 | . . . . . . . 2 . . . . . . . . . . . . . . . . . . . . . Propulsion Burnouts . | . . . . . . . . . . . . . . . . . . . . . . . . . . . . . Robots Hopped 56 | . 20 9 1 12 14 . . . . . . . . . . . . . . . . . . . . . . . Cave-ins Triggered . | . . . . . . . . . . . . . . . . . . . . . . . . . . . . . Exploration Rate (%) 71 | 4 99 95 96 96 71 97 97 82 93 96 49 83 15 96 98 59 97 43 52 . 96 14 83 6 94 98 48 39 Regions Visited 28 Branch Regions 12 Pre-discovered Areas 10 | . 2 2 1 1 . . . 2 . . 1 . . 1 . . . . . . . . . . . . . . Known Exits Taken 16 | . 1 1 1 1 1 1 1 1 . 1 1 . 1 . . . . 1 . 1 . 1 . 1 . 1 . . Unknown Exits Taken 7 | 1 . . . . . . . . 1 . . . . 1 1 1 1 . . . . . . . . . 1 . Scrap Searched 31 | . . 1 9 . . 3 2 4 . 3 . . . 5 3 . 1 . . . . . . . . . . . Spaces Dug 67 | . . . 9 . 3 . . . 3 25 2 . . . . . . 11 . . 5 . . . 7 . . 2 Terrain Destroyed 828 | . . . 11 5 9 4 2 . 11 44 137 85 98 18 18 25 34 63 26 . 9 21 29 2 55 26 38 58 Melee . | . . . . . . . . . . . . . . . . . . . . . . . . . . . . . Projectile 579 | . . . 11 5 9 4 2 . 11 44 43 15 27 18 18 25 34 49 26 . 9 21 29 2 55 26 38 58 AOE 249 | . . . . . . . . . . . 94 70 71 . . . . 14 . . . . . . . . . . Terrain Rammed . | . . . . . . . . . . . . . . . . . . . . . . . . . . . . . Walls Destroyed . | . . . . . . . . . . . . . . . . . . . . . . . . . . . . . Machines Disabled . | . . . . . . . . . . . . . . . . . . . . . . . . . . . . . Actions | -11 -10 -10 -10 -8 -7 -7 -7 -7 -7 -6 -6 -6 -5 -5 -5 -5 -4 -4 -4 -4 -4 -3 -3 -3 -3 -3 -2 -1 --------- Run | Yrd Mat Min Sub Mat Fac Low Low Zio Dee Pro Fac Gar Fac Upp Upp War Pro Fac Gar Fac DSF Res Gar Res Gar Qua Res Acc Total 35698 | 28 1165 1047 3207 1561 3837 1448 1359 1282 2411 1749 1598 716 647 1144 956 705 1049 1178 470 16 197 507 836 180 879 1668 1556 2302 Wait 4562 | . 162 335 531 130 825 166 186 275 888 373 78 4 11 . 7 21 1 66 9 . . 54 24 3 50 138 74 151 Move 28042 | 24 860 687 2553 1254 2840 1185 1098 1003 1327 1242 1407 628 535 1097 912 628 932 874 390 16 146 384 688 164 646 1314 1301 1907 Hop 47 | . 18 8 1 10 10 . . . . . . . . . . . . . . . . . . . . . . . Pick Up 20 | . . . 2 6 4 . . . 3 . . 1 1 1 . . . . . . 1 . . . . 1 . . Fast Attach 49 | 3 5 . 4 9 14 . 1 . 9 . 3 1 . . . . . . . . . . . . . . . . Attach 2 | . . . 1 . . . . . 1 . . . . . . . . . . . . . . . . . . . Detach 1 | . . . . . . . . . 1 . . . . . . . . . . . . . . . . . . . Swap 43 | 1 1 . 3 2 5 . . . 6 2 2 . . . . 2 . 7 4 . 3 . . . 3 2 . . Drop 71 | . 1 . 5 13 12 . . . 25 1 1 1 1 . . . . 3 2 . 2 . . . 2 2 . . Fire 1532 | . 99 16 65 73 91 38 41 4 109 68 69 41 46 19 16 44 40 90 50 . 17 37 64 5 89 83 77 141 Melee 54 | . . . 5 41 4 . 4 . . . . . . . . . . . . . . . . . . . . . Ram . | . . . . . . . . . . . . . . . . . . . . . . . . . . . . . Kick 17 | . . . . . . . . . . . 4 . 3 . . . . . . . . . . . . 7 . 3 Crush . | . . . . . . . . . . . . . . . . . . . . . . . . . . . . . Escape Stasis 38 | . . . . . . . . . . 20 4 5 . . . . . . . . . . 6 . 3 . . . Rewire 61 | . . . . . 2 4 2 . . 16 . . 3 . . . 4 1 . . . . 1 . 28 . . . Trap 24 | . . . . 1 . 23 . . . . . . . . . . . . . . . . . . . . . . Miscellaneous 1135 | . 19 1 37 22 30 32 27 . 42 27 30 35 47 27 21 10 72 137 15 . 28 32 53 8 58 121 104 100 Route ------- -11/Scrapyard -10/Materials (discovered 5 exits: *Mat x3 / *Min x2) -10/Mines (discovered 3 exits: *Mat x2 / *Sub) -10/Subcaves (discovered 3 exits: *Mat x2 / [*Rec]) -8/Materials (discovered 3 exits: *Fac x3) -7/Factory (discovered 8 exits: *Fac x4 / *Sto x2 / *Low x2) -7/Lower Caves -7/Lower Caves (discovered 2 exits: *Fac / *Zio) -7/Zion (discovered 2 exits: *Dee / Pro) -7/Deep Caves -6/Proximity Caves -6/Factory (discovered 7 exits: *Fac x4 / *Low x2 / Gar) -6/Garrison (discovered 3 exits: *Fac x3) -5/Factory (discovered 4 exits: *Upp x2 / *Ext x2) -5/Upper Caves -5/Upper Caves (discovered 2 exits: *Fac / *War) -5/Warlord -4/Proximity Caves -4/Factory (discovered 7 exits: *Res x2 / *Upp x2 / Arm / Gar / Gar) -4/Garrison (discovered 3 exits: *Fac x3) -4/Factory -4/DSF -3/Research (discovered 2 exits: *Qua / Gar) -3/Garrison (discovered 3 exits: *Res x3) -3/Research -3/Garrison (discovered 3 exits: *Qua x3) -3/Quarantine -2/Research (discovered 2 exits: *Acc x2) -1/Access Tau Ceti IV Orbit History --------- Turn | Location | Event 1 | -11/Scrapyard | Upgraded with Power slot (x1) 1 | -11/Scrapyard | Upgraded with Propulsion slot (x1) 1 | -11/Scrapyard | Upgraded with Utility slot (x1) 10 | -11/Scrapyard | Discovered new exit (range 16) 19 | -11/Scrapyard | Entered Materials 160 | -10/Materials | Discovered new exit (range 13) 238 | -10/Materials | Discovered new exit (range 13) 360 | -10/Materials | Discovered new exit (range 7) 373 | -10/Materials | Discovered new exit (range 14) 382 | -10/Materials | Identified exit to Materials 392 | -10/Materials | Identified exit to Mines 441 | -10/Materials | Build established: Hacker-Mutant 538 | -10/Materials | Reached level 2 743 | -10/Materials | Entered Mines 769 | -10/Mines | Reached level 3 915 | -10/Mines | Discovered new exit (range 6) 935 | -10/Mines | Learned location of Storage (-7) 953 | -10/Mines | Discovered exit to Materials (range 13) 957 | -10/Mines | Assisted by bots powering up and referring to "LRC-V3" 970 | -10/Mines | Discovered exit to Materials (range 10) 1146 | -10/Mines | Assembled infested the area 1149 | -10/Mines | Learned location of Zion (-7) 1151 | -10/Mines | Assisted by a Guerilla fighting off Assembled 1370 | -10/Mines | Identified exit to Subcaves 1372 | -10/Mines | Entered Subcaves 1372 | -10/Subcaves | Accompanied by 3 allies 1374 | -10/Subcaves | Reached level 4 1379 | -10/Subcaves | Met a Zionite searching for "candidates" 1442 | -10/Subcaves | Visited 4L-MR0's lab 1442 | -10/Subcaves | Upgraded with Weapon slot (x1) 1616 | -10/Subcaves | Ambushed by Subdwellers from Twisted Machinery 1740 | -10/Subcaves | Found Powered Cannon 1742 | -10/Subcaves | Attached Powered Cannon, gained temporary slot: Power 1804 | -10/Subcaves | Upgraded with Weapon slot (x1) 1819 | -10/Subcaves | Discovered new exit (range 13) 1822 | -10/Subcaves | Shifting Twisted Machinery released Mak. Laser 1843 | -10/Subcaves | Shifting Twisted Machinery released Mak. Laser 1850 | -10/Subcaves | Discovered new exit (range 15) 1860 | -10/Subcaves | Visited Clippyterm 1861 | -10/Subcaves | Learned Factory stockpile data 1913 | -10/Subcaves | A swath of the cavern ceiling suddenly collapsed 2071 | -10/Subcaves | A swath of the cavern ceiling suddenly collapsed 2287 | -10/Subcaves | Discovered new exit (range 15) 2305 | -10/Subcaves | Identified exit to Materials 2700 | -10/Subcaves | Upgraded with Utility slot (x1) 2816 | -10/Subcaves | Disturbed a concealed Subdweller 3048 | -10/Subcaves | Entered Materials 3050 | -8/Materials | Reached level 5 3050 | -8/Materials | Reached level 6 3140 | -8/Materials | Reached level 7 3299 | -8/Materials | Discovered new exit (range 16) 3304 | -8/Materials | Identified exit to Factory 3320 | -8/Materials | Central database locked down 3434 | -8/Materials | Reached level 8 3573 | -8/Materials | Destroyed 7 combat bots 3586 | -8/Materials | Discovered exit to Factory (range 12) 3734 | -8/Materials | Reached level 9 3753 | -8/Materials | Garrison activated, responded to threat 3808 | -8/Materials | Discovered exit to Factory (range 14) 3896 | -8/Materials | Entered Factory 3898 | -7/Factory | Reached level 10 3921 | -7/Factory | Reached level 11 4042 | -7/Factory | Upgraded with Utility slot (x1) 4074 | -7/Factory | Discovered new exit (range 15) 4109 | -7/Factory | Identified exit to Storage 4338 | -7/Factory | Reached level 12 4429 | -7/Factory | Identified exit to Lower Caves 4537 | -7/Factory | Fabricated Mic. Nuclear Core? 4579 | -7/Factory | Fabricated S-27 Virus (x4) 4663 | -7/Factory | Discovered new exit (range 16) 4668 | -7/Factory | Build established: Hacker-Sprinter 4674 | -7/Factory | Identified exit to Factory 4713 | -7/Factory | Lost 3 allies 4763 | -7/Factory | Discovered exit to Factory (range 14) 4890 | -7/Factory | Discovered exit to Factory (range 15) 4915 | -7/Factory | Reached level 13 4932 | -7/Factory | Upgraded with Utility slot (x1) 5280 | -7/Factory | Discovered exit to Factory (range 16) 5465 | -7/Factory | Central database locked down 5571 | -7/Factory | Cargo convoy interrupted 5621 | -7/Factory | Core integrity fell below 50% 5631 | -7/Factory | Reached level 14 5664 | -7/Factory | Found Prototype Launcher 5664 | -7/Factory | Identified Com. Tesla Bomb Launcher 5670 | -7/Factory | Found Com. Tesla Bomb Launcher 5676 | -7/Factory | Upgraded with Propulsion slot (x2) 5868 | -7/Factory | Entered Lower Caves 5978 | -7/Lower Caves | Learned Factory trap positions 6066 | -7/Lower Caves | Discovered new exit (range 7) 6067 | -7/Lower Caves | Identified exit to Lower Caves 6136 | -7/Lower Caves | Attracted the attention of an 0b10 outpost 6147 | -7/Lower Caves | Reached level 15 6186 | -7/Lower Caves | Destroyed 7 combat bots 6411 | -7/Lower Caves | Entered another Lower Caves area 6411 | -7/Lower Caves | Accompanied by 2 allies 6421 | -7/Lower Caves | Learned Factory trap positions 6518 | -7/Lower Caves | Discovered new exit (range 15) 6533 | -7/Lower Caves | Identified exit to Zion 6550 | -7/Lower Caves | Spotted B-75 Beast 6559 | -7/Lower Caves | Destroyed B-75 Beast 6618 | -7/Lower Caves | Attracted the attention of an 0b10 outpost 6699 | -7/Lower Caves | Destroyed 10 combat bots 6717 | -7/Lower Caves | Reached level 16 6942 | -7/Lower Caves | Entered Zion 6942 | -7/Zion | Accompanied by 4 allies 6949 | -7/Zion | System corruption cleaned by Quarantine Array 6952 | -7/Zion | Given A8's code to call for help 6996 | -7/Zion | Discovered new exit (range 3) 6996 | -7/Zion | Saw the warning signs outside the Deep Caves entrance 7003 | -7/Zion | Visited the Megawrench Repair Shop 7019 | -7/Zion | Met Imprinter 7151 | -7/Zion | Learned Factory stockpile data 7187 | -7/Zion | Identified exit to Proximity Caves 7300 | -7/Zion | Learned location of Data Miner (-6) 7336 | -7/Zion | Enhanced Grunt warped into view, answering call for help 7339 | -7/Zion | Enhanced Grunt warped into view, answering call for help 7374 | -7/Zion | Identified exit to Deep Caves 7435 | -7/Zion | Entered Deep Caves 7435 | -7/Deep Caves | Accompanied by 6 allies 7610 | -7/Deep Caves | Attacked by Z-Imprinter 7617 | -7/Deep Caves | Destroyed Z-Imprinter 7631 | -7/Deep Caves | Upgraded with Utility slot (x1) 7633 | -7/Deep Caves | Upgraded with Utility slot (x1) 7638 | -7/Deep Caves | Found Prototype Device 7638 | -7/Deep Caves | Identified Zio. Metafield Generator 7646 | -7/Deep Caves | Lost 4 allies 7647 | -7/Deep Caves | Found Prototype Protection 7647 | -7/Deep Caves | Identified Zio. Weapon Casing 7711 | -7/Deep Caves | Z-Facility disabled 7876 | -7/Deep Caves | Discovered new exit (range 16) 7907 | -7/Deep Caves | Spotted AG-58358 7924 | -7/Deep Caves | Build established: Hacker-Scout 7984 | -7/Deep Caves | Destroyed AG-58358 8063 | -7/Deep Caves | Spotted AG-27067 8064 | -7/Deep Caves | Destroyed AG-27067 8068 | -7/Deep Caves | Triggered Deep Caves wall 8068 | -7/Deep Caves | Spotted AS-84522 8068 | -7/Deep Caves | Spotted AS-25797 8074 | -7/Deep Caves | Exposed GOLEM chamber 8079 | -7/Deep Caves | Found GOLEM Unit 8088 | -7/Deep Caves | Destroyed AS-25797 8094 | -7/Deep Caves | Destroyed AS-84522 8129 | -7/Deep Caves | Destroyed 31 combat bots 8253 | -7/Deep Caves | Destroyed 10 combat bots 8316 | -7/Deep Caves | Found Prototype Slashing Weapon 8316 | -7/Deep Caves | Identified Longsword +1 8857 | -7/Deep Caves | Build established: Hacker-Golem 9672 | -7/Deep Caves | Entered Proximity Caves 9672 | -6/Proximity Caves | Accompanied by 2 allies 9674 | -6/Proximity Caves | Reached level 17 9961 | -6/Proximity Caves | Attracted the attention of an 0b10 checkpoint 10193 | -6/Proximity Caves | Lost 3 allies 10210 | -6/Proximity Caves | Reached level 18 11627 | -6/Proximity Caves | Attracted the attention of an 0b10 outpost 11921 | -6/Proximity Caves | Upgraded with Utility slot (x1) 12131 | -6/Proximity Caves | Ambushed by research squad 12561 | -6/Proximity Caves | Entered Factory 12561 | -6/Factory | Accompanied by 2 allies 12562 | -6/Factory | Loaded intel: 118 trap records 12687 | -6/Factory | Reached level 19 13217 | -6/Factory | Discovered new exit (range 17) 13532 | -6/Factory | Spotted B-75 Beast 13551 | -6/Factory | Destroyed B-75 Beast 14213 | -6/Factory | Reached level 20 14237 | -6/Factory | Discovered new exit (range 15) 14246 | -6/Factory | Identified exit to Lower Caves 14246 | -6/Factory | Identified exit to Factory 14588 | -6/Factory | Local machine network offline 14734 | -6/Factory | Cargo convoy interrupted 14746 | -6/Factory | Upgraded with Utility slot (x1) 14776 | -6/Factory | Core integrity fell below 50% 14802 | -6/Factory | Upgraded with Power slot (x1) 14804 | -6/Factory | Lost 3 allies 14899 | -6/Factory | Identified exit to Garrison 14907 | -6/Factory | Entered Garrison 14907 | -6/Garrison | Accompanied by 1 ally 14934 | -6/Garrison | Local machine network offline 14935 | -6/Garrison | Triggered checkpoint 15011 | -6/Garrison | Triggered checkpoint 15045 | -6/Garrison | Triggered checkpoint 15075 | -6/Garrison | Triggered checkpoint 15079 | -6/Garrison | Lost 3 allies 15089 | -6/Garrison | Triggered checkpoint 15123 | -6/Garrison | Destroyed 10 combat bots 15161 | -6/Garrison | Phase Generator disabled 15179 | -6/Garrison | Discovered exit to Factory (range 5) 15213 | -6/Garrison | Triggered checkpoint 15229 | -6/Garrison | Rescued a captive Derelict 15232 | -6/Garrison | Rescued a captive Derelict 15243 | -6/Garrison | Reached level 21 15306 | -6/Garrison | Discovered exit to Factory (range 15) 15337 | -6/Garrison | Triggered checkpoint 15578 | -6/Garrison | Discovered exit to Factory (range 4) 15609 | -6/Garrison | Triggered checkpoint 15632 | -6/Garrison | Garrison Relay disabled 15665 | -6/Garrison | Garrison Relay disabled 15749 | -6/Garrison | Attempted to access garrison exit controls, blocked by remote lockdown 15841 | -6/Garrison | Garrison Relay disabled 15885 | -6/Garrison | Entered Factory 15885 | -5/Factory | Accompanied by 2 allies 15886 | -5/Factory | Loaded intel: 101 trap records 16107 | -5/Factory | Discovered new exit (range 12) 16185 | -5/Factory | First assault squad dispatched 16216 | -5/Factory | Reached level 22 16228 | -5/Factory | Discovered new exit (range 11) 16273 | -5/Factory | Lost 3 allies 16278 | -5/Factory | Destroyed 9 combat bots 16305 | -5/Factory | Identified exit to Upper Caves 16305 | -5/Factory | Identified exit to Extension 16370 | -5/Factory | Local machine network offline 16380 | -5/Factory | Core integrity fell below 50% 16460 | -5/Factory | Destroyed 8 combat bots 16641 | -5/Factory | Cargo convoy interrupted 16649 | -5/Factory | Upgraded with Utility slot (x1) 16651 | -5/Factory | Found PL-3XN's Ring of Power 16780 | -5/Factory | Entered Upper Caves 16782 | -5/Upper Caves | Reached level 23 16811 | -5/Upper Caves | Destroyed 7 combat bots 16820 | -5/Upper Caves | Spotted B-75 Beast 16828 | -5/Upper Caves | Destroyed B-75 Beast 16832 | -5/Upper Caves | Met a Warlord Commander 16833 | -5/Upper Caves | Learned location of Warlord (-5) 16834 | -5/Upper Caves | Warlord Commander delivered Encrypted Comm Array 16839 | -5/Upper Caves | Found Encrypted Comm Array 17052 | -5/Upper Caves | Attracted the attention of an 0b10 checkpoint 17272 | -5/Upper Caves | Discovered new exit (range 7) 17486 | -5/Upper Caves | Learned Factory security intel 17491 | -5/Upper Caves | Learned Factory emergency access door positions 18263 | -5/Upper Caves | Entered another Upper Caves area 18264 | -5/Upper Caves | Encountered a Warlord checkpoint 18275 | -5/Upper Caves | Attracted the attention of an 0b10 checkpoint 18693 | -5/Upper Caves | Found DCF Scrap (12 items) 18916 | -5/Upper Caves | Discovered new exit (range 13) 19164 | -5/Upper Caves | Discovered new exit (range 14) 19188 | -5/Upper Caves | Learned Factory trap positions 19502 | -5/Upper Caves | Entered Warlord 19669 | -5/Warlord | Opened side exit 19781 | -5/Warlord | Met Warlord 19801 | -5/Warlord | Warlord's base attacked by MAIN.C 19999 | -5/Warlord | Reached level 24 20055 | -5/Warlord | Destroyed 7 combat bots 20097 | -5/Warlord | Warlord forces counterattacked 20271 | -5/Warlord | Lost 5 allies 20379 | -5/Warlord | Spotted Executioner 20392 | -5/Warlord | Destroyed Executioner 20416 | -5/Warlord | Spotted Executioner 20421 | -5/Warlord | Destroyed Executioner 20445 | -5/Warlord | Spotted Executioner 20447 | -5/Warlord | Spotted Executioner 20449 | -5/Warlord | Destroyed 7 combat bots 20454 | -5/Warlord | Discovered new exit (range 17) 20467 | -5/Warlord | Core integrity fell below 20% 20475 | -5/Warlord | Entered Proximity Caves 20667 | -4/Proximity Caves | Spotted B-86 Titan 20677 | -4/Proximity Caves | Destroyed B-86 Titan 21005 | -4/Proximity Caves | Learned Research security intel 21051 | -4/Proximity Caves | Attracted the attention of an 0b10 checkpoint 21083 | -4/Proximity Caves | Discovered new exit (range 18) 21124 | -4/Proximity Caves | Reached level 25 21153 | -4/Proximity Caves | Learned 4 Research zone layouts 21448 | -4/Proximity Caves | Attracted the attention of an 0b10 outpost 21508 | -4/Proximity Caves | Destroyed 8 combat bots 21820 | -4/Proximity Caves | Entered Factory 21820 | -4/Factory | Accompanied by 2 allies 21821 | -4/Factory | Loaded intel: 124 trap records 21881 | -4/Factory | Discovered new exit (range 15) 21998 | -4/Factory | Discovered new exit (range 5) 22099 | -4/Factory | Identified exit to Garrison 22222 | -4/Factory | Reached level 26 22481 | -4/Factory | Upgraded with Utility slot (x1) 22641 | -4/Factory | Identified exit to Upper Caves 22641 | -4/Factory | Identified exit to Armory 22710 | -4/Factory | Discovered new exit (range 17) 22773 | -4/Factory | Spotted B-86 Titan 22791 | -4/Factory | Destroyed B-86 Titan 22991 | -4/Factory | Spotted B-86 Titan 23017 | -4/Factory | Destroyed B-86 Titan 23104 | -4/Factory | Cargo convoy interrupted 23194 | -4/Factory | Destroyed 7 combat bots 23320 | -4/Factory | First assault squad dispatched 23346 | -4/Factory | Noticed a derelict Sapper rigging charges 23363 | -4/Factory | Identified exit to Garrison 23364 | -4/Factory | Entered Garrison 23412 | -4/Garrison | Reached level 27 23442 | -4/Garrison | Triggered checkpoint 23460 | -4/Garrison | Garrison Relay disabled 23516 | -4/Garrison | Triggered checkpoint 23562 | -4/Garrison | Triggered checkpoint 23718 | -4/Garrison | Triggered checkpoint 23718 | -4/Garrison | Triggered checkpoint 23734 | -4/Garrison | Triggered checkpoint 23798 | -4/Garrison | Discovered new exit (range 76) 23798 | -4/Garrison | Discovered new exit (range 39) 23798 | -4/Garrison | Discovered new exit (range 10) 23834 | -4/Garrison | Triggered checkpoint 23853 | -4/Garrison | Garrison Relay disabled 23912 | -4/Garrison | Entered Factory 23922 | -4/Factory | Identified exit to DSF 23927 | -4/Factory | Entered DSF 23972 | -4/DSF | Additional patrols routed to DSF 24051 | -4/DSF | Discovered new exit (range 15) 24084 | -4/DSF | Sterilization system engaged 24104 | -4/DSF | Ambient heat levels rising (+10) 24119 | -4/DSF | Ambient heat levels rising (+10) 24134 | -4/DSF | Ambient heat levels rising (+10) 24148 | -4/DSF | Entered Research 24150 | -3/Research | Reached level 28 24545 | -3/Research | Discovered new exit (range 17) 24699 | -3/Research | Identified exit to Garrison 24700 | -3/Research | Entered Garrison 24702 | -3/Garrison | Reached level 29 24710 | -3/Garrison | Upgraded with Utility slot (x1) 24725 | -3/Garrison | Spotted B-86 Titan 24735 | -3/Garrison | Triggered checkpoint 24775 | -3/Garrison | Destroyed B-86 Titan 24796 | -3/Garrison | Destroyed 9 combat bots 24818 | -3/Garrison | Triggered checkpoint 24850 | -3/Garrison | Garrison Relay disabled 24921 | -3/Garrison | Rescued a captive Derelict 24922 | -3/Garrison | Rescued a captive Derelict 24993 | -3/Garrison | Triggered checkpoint 25027 | -3/Garrison | Destroyed 8 combat bots 25032 | -3/Garrison | Triggered checkpoint 25040 | -3/Garrison | Triggered checkpoint 25082 | -3/Garrison | Triggered checkpoint 25116 | -3/Garrison | Garrison Relay disabled 25132 | -3/Garrison | Discovered new exit (range 14) 25254 | -3/Garrison | Garrison Relay disabled 25288 | -3/Garrison | Triggered checkpoint 25323 | -3/Garrison | Discovered new exit (range 10) 25334 | -3/Garrison | Spotted B-86 Titan 25338 | -3/Garrison | Destroyed B-86 Titan 25342 | -3/Garrison | Spotted B-75 Beast 25346 | -3/Garrison | Destroyed B-75 Beast 25360 | -3/Garrison | Heavy support dispatched to Research 25376 | -3/Garrison | Rewired B-86 Titan 25505 | -3/Garrison | Triggered checkpoint 25521 | -3/Garrison | Garrison Relay disabled 25552 | -3/Garrison | Garrison Relay disabled 25585 | -3/Garrison | Discovered new exit (range 13) 25612 | -3/Garrison | Entered Research 25647 | -3/Research | Reached level 30 25786 | -3/Research | Identified exit to Garrison 25787 | -3/Research | Entered Garrison 25805 | -3/Garrison | Triggered checkpoint 25828 | -3/Garrison | Garrison Relay disabled 25886 | -3/Garrison | Spotted B-86 Titan 25891 | -3/Garrison | Spotted Executioner 25892 | -3/Garrison | Spotted Executioner 25899 | -3/Garrison | Destroyed Executioner 25903 | -3/Garrison | Destroyed Executioner 25914 | -3/Garrison | Destroyed B-86 Titan 25947 | -3/Garrison | Rewired Executioner 25953 | -3/Garrison | Rewired Executioner 26013 | -3/Garrison | Triggered checkpoint 26098 | -3/Garrison | Destroyed 9 combat bots 26138 | -3/Garrison | Found embedded Infiltrators 26155 | -3/Garrison | Discovered new exit (range 11) 26159 | -3/Garrison | Triggered checkpoint 26179 | -3/Garrison | Garrison Relay disabled 26198 | -3/Garrison | Spotted B-86 Titan 26211 | -3/Garrison | Destroyed B-86 Titan 26233 | -3/Garrison | Rewired B-75 Beast 26250 | -3/Garrison | Rewired B-90 Cyclops 26327 | -3/Garrison | Triggered checkpoint 26425 | -3/Garrison | Garrison Relay disabled 26428 | -3/Garrison | Garrison Relay disabled 26432 | -3/Garrison | Garrison Relay disabled 26435 | -3/Garrison | Garrison Relay disabled 26484 | -3/Garrison | Discovered new exit (range 5) 26503 | -3/Garrison | Triggered checkpoint 26533 | -3/Garrison | Garrison Relay disabled 26637 | -3/Garrison | Triggered checkpoint 26664 | -3/Garrison | Triggered checkpoint 26712 | -3/Garrison | Garrison Relay disabled 26768 | -3/Garrison | Discovered new exit (range 10) 26802 | -3/Garrison | Entered Quarantine 26802 | -3/Quarantine | Accompanied by 2 allies 26804 | -3/Quarantine | Reached level 31 26806 | -3/Quarantine | Upgraded with Utility slot (x1) 27052 | -3/Quarantine | First assault squad dispatched 27249 | -3/Quarantine | Found Alien Artifact 27249 | -3/Quarantine | Identified Core Reset Matrix 27249 | -3/Quarantine | Used Core Reset Matrix 27253 | -3/Quarantine | Detected hypermatrix surge 27253 | -3/Quarantine | Sensed 13 artifacts in vicinity 27409 | -3/Quarantine | Identified exit to Research 27871 | -3/Quarantine | Met incapacitated Sigix Warrior 27871 | -3/Quarantine | Lockdown squad dispatched 27877 | -3/Quarantine | Acquired the access code to the Sigix quarantine chamber 27881 | -3/Quarantine | Unlocked Sigix quarantine chamber 27885 | -3/Quarantine | Found Sigix Containment Pod 27910 | -3/Quarantine | Spotted Lightning 27922 | -3/Quarantine | Destroyed Lightning 27967 | -3/Quarantine | Spotted Lightning 27978 | -3/Quarantine | Destroyed Lightning 27988 | -3/Quarantine | Spotted Lightning 27992 | -3/Quarantine | Destroyed Lightning 28118 | -3/Quarantine | P-80 Master assimilated hostile L-61 Swordsman 28525 | -3/Quarantine | Entered Research 28525 | -2/Research | Warlord forces began assault on 0b10 28527 | -2/Research | Reached level 32 28550 | -2/Research | Distinguished unit "The Professionals" dispatched to help 28550 | -2/Research | Distinguished unit "Grunt Murderers" dispatched to help 28604 | -2/Research | Spotted B-90 Cyclops 28635 | -2/Research | Research machine network offline 28718 | -2/Research | Spotted B-90 Cyclops 28804 | -2/Research | Spotted Executioner 28805 | -2/Research | Destroyed Executioner 28809 | -2/Research | Spotted Executioner 28813 | -2/Research | Destroyed Executioner 28875 | -2/Research | Destroyed 8 combat bots 28883 | -2/Research | Lost 5 allies 28915 | -2/Research | Discovered new exit (range 6) 28968 | -2/Research | Spotted Striker 28971 | -2/Research | Spotted Striker 28977 | -2/Research | Destroyed Striker 28999 | -2/Research | Destroyed Striker 29009 | -2/Research | Lost 6 allies 29037 | -2/Research | Destroyed 11 combat bots 29096 | -2/Research | Spotted Striker 29099 | -2/Research | Spotted Striker 29110 | -2/Research | Destroyed Striker 29413 | -2/Research | Spotted Striker 29421 | -2/Research | Spotted Executioner 29422 | -2/Research | Spotted Striker 29424 | -2/Research | Destroyed Striker 29440 | -2/Research | Destroyed Striker 29470 | -2/Research | Reached level 33 29473 | -2/Research | Core integrity fell below 50% 29484 | -2/Research | Destroyed Executioner 29511 | -2/Research | Destroyed 14 combat bots 29599 | -2/Research | Discovered new exit (range 8) 29697 | -2/Research | Spotted Executioner 29701 | -2/Research | Destroyed Executioner 29741 | -2/Research | Lost 3 allies 29758 | -2/Research | Spotted Executioner 29759 | -2/Research | Destroyed Executioner 29962 | -2/Research | Met DD-05H 29963 | -2/Research | Met up with Warlord 29964 | -2/Research | Warlord invited to help at Command 30129 | -2/Research | Entered Access 30430 | -1/Access | Reached level 34 30629 | -1/Access | First assault squad dispatched 30678 | -1/Access | Upgraded with Utility slot (x1) 31306 | -1/Access | Reached level 35 31597 | -1/Access | Garrison activated, responded to threat 31772 | -1/Access | Destroyed 7 combat bots 32081 | -1/Access | Destroyed 7 combat bots 32232 | -1/Access | High security lockdown imminent 32312 | -1/Access | High security lockdown engaged 32366 | -1/Access | Reached level 36 32450 | -1/Access | Spotted B-99 Colossus 32456 | -1/Access | Spotted B-99 Colossus 32467 | -1/Access | Core integrity fell below 50% 32474 | -1/Access | Emitted hypermatrix ping 32478 | -1/Access | Core integrity fell below 20% 32479 | -1/Access | Assembled emerged from beneath the floor 32482 | -1/Access | Discovered new exit (range 5) 32488 | *** | Destroyed 0b10! Last Messages --------------- 32480_ Slug penetrates Sealed Heavy Doors. 32480_ M-36 Artificer repairs B-74 Champion. 32481_ Slug penetrates Sealed Heavy Doors. 32481_ Penetrated by Slug. 32481_ Slug penetrates Sealed Heavy Doors. 32481_ Penetrated by Slug. 32482_ Main Access Shell breached. 32482_ EXIT=FOUND 32484_ Asb. Suspension Frame integration complete. 32484_ Slug penetrates Sealed Heavy Doors. 32484_ Asb. Alloy Armor destroyed. 32484_ Slug penetrates Sealed Heavy Doors. 32484_ Penetrated by Slug. 32485_ GOLEM Unit beginning Asb. Nanovents integration. 32486_ Asb. Nanovents integration complete. 32486_ as-24405 destroyed. 32487_ GOLEM Unit beginning Asb. Alloy Armor integration. Map ----- +----------------------------------------------------+ | ?????????????????????????????????????????????????? | | ?????????????????????????????????????????????????? | | ?????????????????????????????????????????????????? | | ?????????????????????????????????????????????????? | | ?????????????????????????????????????????????????? | | ?????????????????????????????????????????????????? | | ?????????????????????????????????????????????????? | | ?????????????????????????????????????????????????? | | ?????????????????????????????????????????????????? | | ?????????????????????????????????????????????????? | | ?????????????????????????????????????????????????? | | ?????????????????????????????????????????????????? | | ?????????????????????????????????????????????????? | | ?????????????????????????????????????????????????? | | ?????????????????????????????????????????????????? | | ?????????????????????????????????????????????????? | | #####+####???????????????????????????????????????? | | ???????????????????????????????????????? | | #???????????????????????????????????????? | | %#???????????????????????????????????????? | | #########??###??????????????????????????? | | ??# # "??" ??????????????????????????? | | ??# !%= # "??" ??????????????????????????? | | ?## % # "??" """"""?????????????????????? | | ?#" % "??" " "?????????????????????? | | ?#" % % "??" " "@ " "??????????????????? | | ### % """" "" "??????????????????? | | # %% % %%% % " " "??????????????????? | | "% %|###% BB%"""" """"""? "??????????????????? | | # [%=#%# %"??" ??????"??????????????????? | | #! %### % "??" ????????????????????????? | | +% =!#?#########??######???????????????????????? | | #% *#?????????????????????????????????????????? | | #!% #?????????????????????????????????????????? | | #*=% ##????????????????????????????????????????? | | [ #% !##????????????????????????????????????????? | | ### |%##????????????????????????????????????????? | | # =#?????????????????????????????????????????? | | #| ^ #?????????????????????????????????????????? | | #%! #?????????????????????????????????????????? | | #!= #?????????????????????????????????????????? | | = # #?????????????????????????????????????????? | | # ##????????????????????????????????????????? | | #= # ????????????????????????????????????????? | | ###%% #?????????????????????????????????????????? | | /*%!= #?????????????????????????????????????????? | | %=!![ #?????????????????????????????????????????? | | [! #?????????????????????????????????????????? | | #?????????????????????????????????????????? | | ########?????????????????????????????????????????? | +----------------------------------------------------+ Best States ------------- Heat Dissipation 145 Energy Generation 70 Energy Capacity 2350 Matter Stores 300 Matter Capacity 300 Sight Range 18 Terrain Scan Range 16 Terrain Scan Density 610 Additional Mass Support 20 Base Temperature (-) 100 Armor Coverage 300 Resistance: KI 35 Resistance: TH 35 Resistance: EX 35 Resistance: EM 35 Resistance: I 35 Resistance: S 35 Resistance: P 35 Phase Shifting 15 Evasion (%) 94 Targeting Accuracy 8 Core Analysis 8 Offensive Hacking 30 Defensive Hacking 10 Item Schematics ----------------- Hvy. Dispersion Rifle | -3/Quarantine | Archive Hvy. Proton Cannon | -3/Quarantine | Archive Cld. Field Propulsion Drive | -3/Quarantine | Archive Hvy. Wave Gun | -3/Quarantine | Archive Enh. Coil Gun | -3/Quarantine | Archive Exp. Signal Interpreter | -3/Quarantine | Archive Coolant Network | -3/Quarantine | Archive Robot Schematics ------------------ T-07 Excavator | -3/Quarantine | Archive Fabricated ------------ Mic. Nuclear Core | x2 | -7/Factory | Preloaded S-27 Virus | x4 | -7/Factory | Preloaded Alien Tech Used ----------------- Core Reset Matrix Achievements -------------- Speed Demon Challenges ------------ None RPGLIKE | -11 -10 -10 -10 -8 -7 -7 -7 -7 -7 -6 -6 -6 -5 -5 -5 -5 -4 -4 -4 -4 -4 -3 -3 -3 -3 -3 -2 -1 --------- Run | Yrd Mat Min Sub Mat Fac Low Low Zio Dee Pro Fac Gar Fac Upp Upp War Pro Fac Gar Fac DSF Res Gar Res Gar Qua Res Acc Levels Raised 35 | . 1 1 1 5 5 1 1 . . 2 2 1 1 1 . 1 1 1 1 . . 1 1 1 . 1 2 3 XP Earned 57062 | 4000 2412 1120 1650 7793 6658 1481 1435 220 680 2675 3106 1109 2541 602 500 948 1621 2307 830 . 414 1774 1612 67 1355 1152 2441 4559 XP Spent 56260 | 2450 1520 . 3830 5100 8400 . . . 5135 2300 3400 . 2900 1250 . 2015 . 3200 . . . . 3500 . . 3800 . 7460 Upgrades 96 | 6 11 . 7 13 15 . . . 10 1 2 . 1 1 . 13 . 1 . . . . 1 . . 1 . 13 Power Slot 2 | 1 . . . . . . . . . . 1 . . . . . . . . . . . . . . . . . Propulsion Slot 3 | 1 . . . . 2 . . . . . . . . . . . . . . . . . . . . . . . Utility Slot 13 | 1 . . 1 . 2 . . . 2 1 1 . 1 . . . . 1 . . . . 1 . . 1 . 1 Weapon Slot 2 | . . . 2 . . . . . . . . . . . . . . . . . . . . . . . . . Core Integrity 32 | . . . . . 6 . . . 1 . . . . . . 13 . . . . . . . . . . . 12 Heat Dissipation 10 | . 5 . . . . . . . 5 . . . . . . . . . . . . . . . . . . . Energy Generation 1 | . . . . 1 . . . . . . . . . . . . . . . . . . . . . . . . Mass Support 3 | 2 . . 1 . . . . . . . . . . . . . . . . . . . . . . . . . Inventory Capacity 5 | 1 . . . 2 1 . . . . . . . . 1 . . . . . . . . . . . . . . Sight Range 2 | . . . . . . . . . 2 . . . . . . . . . . . . . . . . . . . Terrain Scan Density 6 | . 3 . 3 . . . . . . . . . . . . . . . . . . . . . . . . . Ranged Accuracy 5 | . . . . 4 1 . . . . . . . . . . . . . . . . . . . . . . . Melee Accuracy 1 | . . . . 1 . . . . . . . . . . . . . . . . . . . . . . . . Hack Attack % 4 | . 2 . . . 2 . . . . . . . . . . . . . . . . . . . . . . . Hack Defense % 2 | . 1 . . . 1 . . . . . . . . . . . . . . . . . . . . . . . KI Resistance % 1 | . . . . 1 . . . . . . . . . . . . . . . . . . . . . . . . TH Resistance % 1 | . . . . 1 . . . . . . . . . . . . . . . . . . . . . . . . EX Resistance % 1 | . . . . 1 . . . . . . . . . . . . . . . . . . . . . . . . TH Damage % 2 | . . . . 2 . . . . . . . . . . . . . . . . . . . . . . . . Protomatter Created 14839 | . 168 . 333 560 317 388 273 . 1146 197 733 477 409 201 261 425 629 1336 185 . 419 491 676 57 628 1448 1237 1845 Integrity Restored 24279 | . 298 9 746 385 590 726 563 . 892 523 619 677 1043 579 397 231 1656 3020 282 . 602 623 1169 167 1290 2680 2237 2275 Core 18708 | . 259 9 577 309 490 715 297 . 714 408 563 424 981 455 88 231 1656 1772 180 . 472 382 924 67 1082 1801 1778 2074 Parts 5571 | . 39 . 169 76 100 11 266 . 178 115 56 253 62 124 309 . . 1248 102 . 130 241 245 100 208 879 459 201 Protomatter Decayed 12538 | . 74 . 170 323 173 42 9 . 1056 109 661 327 186 7 101 867 77 404 108 . 84 142 289 . 393 694 5310 932 Game ------ Seed StormOmegaBay Manual? 0 Play Time 05:01:11 Cumulative 108.0 hours Start 2024.09.17 @ 07:42:28 End 2024.09.17 @ 15:07:15 Sessions 2 Manual Loads 0 Difficulty Adventurer Special Mode Winter2019/RPGLIKE Game No. 63 Rogue 0 Adventurer 63 Explorer 0 Win Type 3 Total 5 Types 2/0/1/2/0/0/0/0/0 Lore% 54 Gallery% 54 Achievement% 69 Wizard Run 0 Options --------- Layout 2 ASCII 0 Keyboard 0 Movement Numpad Keybinds 0 Fullscreen 2 Font 24/Smallcaps Map View 50x44 Zoom Use 0% Tactical HUD 1 Map Filters NONE Filters NONE Steam 1 RUN: 2603c9d5-cc7d-43dd-b3de-6e9007f9e016